[Event "MČR družstev mladších žáků 2024"]
[Site "Harrachov, Czech Republic"]
[Date "2024.06.16"]
[Round "8.21"]
[White "Filip Damian"]
[Black "Vorlik Jachym"]
[Result "1-0"]
[TimeControl "25+10"]
[WhiteFideId "23755415"]
[BlackFideId "23750901"]
[WhiteElo "1196"]
[BlackElo "1388"]

1. e4 {[%clk 00:25:19]} e6 {[%clk 00:25:19]} {[%emt 00:00:02]} 2. d4 {[%clk
00:25:28]} {[%emt 00:00:01]} d5 {[%clk 00:25:28]} {[%emt 00:00:01]} 3. Nd2
{[%clk 00:25:36]} {[%emt 00:00:02]} dxe4 {[%clk 00:25:34]} {[%emt 00:00:04]} 4.
Nxe4 {[%clk 00:25:44]} {[%emt 00:00:01]} Be7 {[%clk 00:25:42]} {[%emt
00:00:03]} 5. Nf3 {[%clk 00:25:18]} {[%emt 00:00:35]} Nf6 {[%clk 00:25:50]}
{[%emt 00:00:03]} 6. Nxf6+ {[%clk 00:23:54]} {[%emt 00:01:33]} Bxf6 {[%clk
00:25:57]} {[%emt 00:00:03]} 7. Be3 {[%clk 00:23:57]} {[%emt 00:00:07]} O-O
{[%clk 00:25:58]} {[%emt 00:00:09]} 8. Bc4 {[%clk 00:23:56]} {[%emt 00:00:11]}
b6 {[%clk 00:25:49]} {[%emt 00:00:20]} 9. O-O {[%clk 00:23:36]} {[%emt
00:00:29]} Bb7 {[%clk 00:25:43]} {[%emt 00:00:17]} 10. c3 {[%clk 00:23:36]}
{[%emt 00:00:10]} Nd7 {[%clk 00:24:26]} {[%emt 00:01:26]} 11. Re1 {[%clk
00:22:47]} {[%emt 00:00:59]} Re8 {[%clk 00:23:28]} {[%emt 00:01:09]} 12. Qe2
{[%clk 00:20:26]} {[%emt 00:02:30]} e5 {[%clk 00:20:26]} {[%emt 00:03:12]} 13.
dxe5 {[%clk 00:19:57]} {[%emt 00:00:39]} Nxe5 {[%clk 00:19:07]} {[%emt
00:01:29]} 14. Nxe5 {[%clk 00:20:01]} {[%emt 00:00:07]} Bxe5 {[%clk 00:19:05]}
{[%emt 00:00:12]} 15. Rad1 {[%clk 00:19:48]} {[%emt 00:00:23]} Qh4 {[%clk
00:17:09]} {[%emt 00:02:01]} 16. g3 {[%clk 00:16:14]} {[%emt 00:03:48]} Qe4
{[%clk 00:09:27]} {[%emt 00:07:52]} 17. f3 {[%clk 00:13:49]} {[%emt 00:02:36]}
Qg6 {[%clk 00:06:34]} {[%emt 00:03:03]} 18. Kg2 {[%clk 00:08:11]} {[%emt
00:05:47]} c5 {[%clk 00:03:34]} {[%emt 00:03:11]} 19. Bf4 {[%clk 00:04:57]}
{[%emt 00:03:24]} Qf6 {[%clk 00:01:58]} {[%emt 00:01:46]} 20. Bd5 {[%clk
00:00:48]} {[%emt 00:04:18]} Bxd5 {[%clk 00:00:52]} {[%emt 00:01:16]} 21. Rxd5
{[%clk 00:00:51]} {[%emt 00:00:08]} Bd6 {[%clk 00:00:46]} {[%emt 00:00:16]} 22.
Qxe8+ {[%clk 00:00:34]} {[%emt 00:00:27]} Rxe8 {[%clk 00:00:41]} {[%emt
00:00:14]} 23. Rxe8+ {[%clk 00:00:42]} {[%emt 00:00:02]} Bf8 {[%emt 00:00:02]}
24. Rdd8 {[%emt 00:00:02]} h6 {[%clk 00:00:31]} {[%emt 00:00:17]} 25. Rxf8+
{[%clk 00:00:50]} {[%emt 00:00:02]} Kh7 {[%clk 00:00:39]} {[%emt 00:00:02]} 26.
Rh8+ {[%clk 00:00:58]} {[%emt 00:00:02]} Kg6 {[%clk 00:00:45]} {[%emt
00:00:04]} 27. Rd6 {[%clk 00:01:07]} {[%emt 00:00:01]} Qxd6 {[%clk 00:00:45]}
{[%emt 00:00:10]} 28. Bxd6 {[%clk 00:01:15]} {[%emt 00:00:01]} f5 {[%clk
00:00:52]} {[%emt 00:00:04]} 29. Rf8 {[%clk 00:01:22]} {[%emt 00:00:03]} Kh7
{[%clk 00:00:57]} {[%emt 00:00:04]} 30. Kh3 {[%clk 00:01:30]} {[%emt 00:00:03]}
g5 {[%clk 00:01:03]} {[%emt 00:00:03]} 31. g4 {[%clk 00:01:19]} {[%emt
00:00:22]} f4 {[%clk 00:01:09]} {[%emt 00:00:04]} 32. Kg2 {[%clk 00:01:27]}
{[%emt 00:00:01]} c4 {[%clk 00:01:15]} {[%emt 00:00:04]} 33. Kf2 {[%clk
00:01:36]} {[%emt 00:00:01]} b5 {[%clk 00:01:24]} {[%emt 00:00:02]} 34. Ke2
{[%clk 00:01:44]} {[%emt 00:00:01]} a5 {[%clk 00:01:33]} {[%emt 00:00:02]} 35.
Rb8 {[%clk 00:01:46]} {[%emt 00:00:08]} b4 {[%clk 00:01:40]} {[%emt 00:00:03]}
36. cxb4 {[%clk 00:01:55]} {[%emt 00:00:01]} axb4 {[%clk 00:01:47]} {[%emt
00:00:03]} 37. Rxb4 {[%clk 00:02:03]} {[%emt 00:00:02]} c3 {[%clk 00:01:54]}
{[%emt 00:00:03]} 38. bxc3 {[%clk 00:02:09]} {[%emt 00:00:04]} h5 {[%clk
00:01:58]} {[%emt 00:00:06]} 39. Rb7+ {[%clk 00:02:03]} {[%emt 00:00:16]} Kg6
{[%clk 00:02:05]} {[%emt 00:00:02]} 40. gxh5+ {[%clk 00:02:12]} {[%emt
00:00:02]} Kxh5 {[%clk 00:02:11]} {[%emt 00:00:04]} 41. a4 {[%clk 00:02:17]}
{[%emt 00:00:05]} g4 {[%clk 00:02:18]} {[%emt 00:00:02]} 42. Bxf4 {[%clk
00:02:22]} {[%emt 00:00:05]} g3 {[%clk 00:02:19]} {[%emt 00:00:09]} 43. Bxg3
{[%clk 00:02:30]} {[%emt 00:00:02]} Kg5 {[%clk 00:02:27]} {[%emt 00:00:02]} 44.
h4+ {[%clk 00:02:35]} {[%emt 00:00:06]} Kh5 {[%clk 00:02:35]} {[%emt 00:00:02]}
45. Rb5+ {[%clk 00:02:41]} {[%emt 00:00:03]} Kh6 {[%clk 00:02:43]} {[%emt
00:00:02]} 46. Bf4+ {[%clk 00:02:50]} {[%emt 00:00:02]} Kg6 {[%clk 00:02:51]}
{[%emt 00:00:01]} 47. h5+ {[%clk 00:02:58]} {[%emt 00:00:02]} Kh7 {[%clk
00:03:00]} {[%emt 00:00:02]} 48. Rb6 {[%clk 00:03:07]} {[%emt 00:00:01]} Kg7
{[%clk 00:03:07]} {[%emt 00:00:02]} 49. Be5+ {[%clk 00:03:15]} {[%emt
00:00:01]} Kh7 {[%clk 00:03:16]} {[%emt 00:00:03]} 50. a5 {[%clk 00:03:16]}
{[%emt 00:00:09]} Kg8 {[%clk 00:03:21]} {[%emt 00:00:05]} 51. Bh8 {[%clk
00:03:24]} {[%emt 00:00:02]} Kh7 {[%clk 00:03:25]} {[%emt 00:00:04]} 52. a6
{[%clk 00:03:30]} {[%emt 00:00:06]} Kxh8 {[%clk 00:03:31]} {[%emt 00:00:04]} 53.
Rb7 {[%clk 00:03:31]} {[%emt 00:00:10]} Kg8 {[%clk 00:03:37]} {[%emt 00:00:02]}
54. a7 {[%clk 00:03:40]} {[%emt 00:00:01]} Kf8 {[%clk 00:03:46]} {[%emt
00:00:01]} 55. a8=R# {[%clk 00:03:48]} {[%emt 00:00:09]} 1-0



[ePGN "0.1;DGT LiveChess/2.2.6"]

[Event "MČR družstev mladších žáků 2024"]
[Site "Harrachov, Czech Republic"]
[Date "2024.06.16"]
[Round "8.22"]
[White "Bartak Tobias"]
[Black "Pokorny Petr"]
[Result "1-0"]
[TimeControl "25+10"]
[WhiteFideId "23753544"]
[WhiteElo "1260"]
[BlackElo "1040"]

1. e4 {[%clk 00:25:08]} {[%emt 00:00:11]} c6 {[%clk 00:25:18]} {[%emt
00:00:02]} 2. d4 {[%clk 00:25:13]} {[%emt 00:00:05]} d5 {[%clk 00:25:26]}
{[%emt 00:00:02]} 3. exd5 {[%clk 00:25:09]} {[%emt 00:00:14]} cxd5 {[%clk
00:25:33]} {[%emt 00:00:03]} 4. Nf3 {[%clk 00:25:00]} {[%emt 00:00:19]} Nc6
{[%clk 00:25:34]} {[%emt 00:00:09]} 5. Bb5 {[%clk 00:24:29]} {[%emt 00:00:41]}
Bf5 {[%clk 00:25:15]} {[%emt 00:00:29]} 6. O-O {[%clk 00:23:44]} {[%emt
00:00:55]} e6 {[%clk 00:25:12]} {[%emt 00:00:13]} 7. c3 {[%clk 00:23:02]}
{[%emt 00:00:53]} a6 {[%clk 00:25:00]} {[%emt 00:00:22]} 8. Bxc6+ {[%clk
00:22:03]} {[%emt 00:01:09]} bxc6 {[%clk 00:25:01]} {[%emt 00:00:08]} 9. Bf4
{[%clk 00:22:02]} {[%emt 00:00:11]} Bd6 {[%clk 00:24:49]} {[%emt 00:00:23]} 10.
Bxd6 {[%clk 00:21:45]} {[%emt 00:00:26]} Qxd6 {[%clk 00:24:55]} {[%emt
00:00:03]} 11. Nbd2 {[%clk 00:20:45]} {[%emt 00:01:11]} Ne7 {[%clk 00:23:48]}
{[%emt 00:01:16]} 12. Re1 {[%clk 00:18:09]} {[%emt 00:02:48]} O-O {[%clk
00:23:14]} {[%emt 00:00:44]} 13. Nb3 {[%clk 00:15:23]} {[%emt 00:02:55]} a5
{[%clk 00:19:31]} {[%emt 00:03:53]} 14. Nc5 {[%clk 00:13:32]} {[%emt 00:02:01]}
Rfb8 {[%clk 00:18:25]} {[%emt 00:01:16]} 15. b3 {[%clk 00:11:14]} {[%emt
00:02:28]} Ng6 {[%clk 00:16:45]} {[%emt 00:01:51]} 16. Nd2 {[%clk 00:09:14]}
{[%emt 00:02:10]} Re8 {[%clk 00:15:09]} {[%emt 00:01:45]} 17. Nf1 {[%clk
00:07:09]} {[%emt 00:02:15]} e5 {[%clk 00:12:24]} {[%emt 00:02:55]} 18. Ne3
{[%clk 00:06:49]} {[%emt 00:00:31]} Bd7 {[%clk 00:09:28]} {[%emt 00:03:05]} 19.
Qc2 {[%clk 00:05:23]} {[%emt 00:01:36]} exd4 {[%clk 00:07:50]} {[%emt
00:01:47]} 20. cxd4 {[%clk 00:05:00]} {[%emt 00:00:35]} Nf8 {[%clk 00:06:17]}
{[%emt 00:01:43]} 21. Rac1 {[%clk 00:04:07]} {[%emt 00:01:01]} Rac8 {[%clk
00:05:30]} {[%emt 00:00:58]} 22. Qc3 {[%emt 00:01:13]} Ne6 {[%clk 00:03:42]}
{[%emt 00:01:56]} 23. Qxa5 {[%clk 00:02:25]} {[%emt 00:00:51]} Nxd4 {[%clk
00:03:00]} {[%emt 00:00:52]} 24. Nxd7 {[%clk 00:02:00]} {[%emt 00:00:35]} Qxd7
{[%clk 00:03:06]} {[%emt 00:00:04]} 25. Qc3 {[%clk 00:01:52]} {[%emt 00:00:18]}
Nb5 {[%clk 00:02:36]} {[%emt 00:00:40]} 26. Qb2 {[%clk 00:01:40]} {[%emt
00:00:22]} d4 {[%clk 00:01:57]} {[%emt 00:00:50]} 27. Nc4 {[%clk 00:01:34]}
{[%emt 00:00:16]} Rb8 {[%clk 00:01:11]} {[%emt 00:00:56]} 28. Ne5 {[%clk
00:00:38]} {[%emt 00:01:06]} Qd5 {[%clk 00:01:03]} {[%emt 00:00:17]} 29. Nf3
{[%clk 00:00:24]} {[%emt 00:00:25]} c5 {[%clk 00:00:33]} {[%emt 00:00:40]} 30.
Rxe8+ {[%clk 00:00:19]} {[%emt 00:00:15]} Rxe8 {[%clk 00:00:41]} {[%emt
00:00:02]} 31. h3 {[%clk 00:00:28]} {[%emt 00:00:01]} d3 {[%clk 00:00:29]}
{[%emt 00:00:21]} 32. Rd1 {[%clk 00:00:25]} {[%emt 00:00:13]} Re2 {[%clk
00:00:18]} {[%emt 00:00:22]} 33. Qb1 {[%clk 00:00:28]} {[%emt 00:00:06]} d2
{[%clk 00:00:13]} {[%emt 00:00:15]} 34. Qc2 {[%clk 00:00:31]} {[%emt 00:00:07]}
Qxf3 {[%clk 00:00:12]} {[%emt 00:00:12]} 35. gxf3 {[%clk 00:00:31]} {[%emt
00:00:10]} Re1+ {[%clk 00:00:20]} {[%emt 00:00:02]} 36. Kg2 {[%clk 00:00:40]}
{[%emt 00:00:01]} Nd4 {[%clk 00:00:15]} {[%emt 00:00:15]} 37. Qxd2 {[%clk
00:00:48]} {[%emt 00:00:02]} 1-0



[ePGN "0.1;DGT LiveChess/2.2.6"]

[Event "MČR družstev mladších žáků 2024"]
[Site "Harrachov, Czech Republic"]
[Date "2024.06.16"]
[Round "8.23"]
[White "Lang Christian"]
[Black "Vratny Vojtech"]
[Result "0-1"]
[TimeControl "25+10"]
[WhiteFideId "23771771"]
[BlackFideId "23753692"]
[WhiteElo "1242"]
[BlackElo "1208"]

1. e4 {[%clk 00:25:18]} {[%emt 00:00:01]} c6 {[%clk 00:25:19]} {[%emt
00:00:02]} 2. d4 {[%clk 00:25:24]} {[%emt 00:00:03]} d5 {[%clk 00:25:28]}
{[%emt 00:00:01]} 3. Nd2 {[%clk 00:25:33]} {[%emt 00:00:02]} dxe4 {[%clk
00:25:34]} {[%emt 00:00:04]} 4. Nxe4 {[%clk 00:25:19]} Nf6 {[%clk 00:25:40]}
{[%emt 00:00:27]} 5. Nxf6+ {[%clk 00:24:14]} {[%emt 00:01:15]} exf6 {[%clk
00:25:48]} {[%emt 00:00:02]} 6. Bc4 {[%clk 00:24:12]} {[%emt 00:00:12]} Bd6
{[%clk 00:25:52]} {[%emt 00:00:06]} 7. Nf3 {[%clk 00:24:10]} {[%emt 00:00:12]}
O-O {[%clk 00:25:52]} {[%emt 00:00:10]} 8. O-O {[%clk 00:24:12]} {[%emt
00:00:09]} Nd7 {[%clk 00:25:52]} {[%emt 00:00:09]} 9. Be3 {[%clk 00:23:36]}
{[%emt 00:00:46]} Re8 {[%clk 00:25:54]} {[%emt 00:00:08]} 10. Re1 {[%clk
00:22:31]} {[%emt 00:01:15]} Nf8 {[%clk 00:25:54]} {[%emt 00:00:10]} 11. c3
{[%clk 00:21:38]} {[%emt 00:01:04]} Bg4 {[%clk 00:25:31]} {[%emt 00:00:31]} 12.
h3 {[%clk 00:21:29]} {[%emt 00:00:20]} Bh5 {[%clk 00:25:19]} {[%emt 00:00:22]}
13. Qb3 {[%clk 00:17:44]} {[%emt 00:03:55]} b5 {[%clk 00:24:41]} {[%emt
00:00:47]} 14. Be2 {[%clk 00:17:38]} {[%emt 00:00:16]} Bc7 {[%clk 00:23:15]}
{[%emt 00:01:35]} 15. Nh4 {[%clk 00:11:29]} {[%emt 00:06:21]} Bxe2 {[%clk
00:22:58]} {[%emt 00:00:27]} 16. Rxe2 {[%clk 00:11:38]} {[%emt 00:00:01]} Qd6
{[%clk 00:22:03]} {[%emt 00:01:05]} 17. Nf3 {[%clk 00:10:21]} {[%emt 00:01:27]}
Ng6 {[%clk 00:20:40]} {[%emt 00:01:33]} 18. Ree1 {[%clk 00:08:43]} {[%emt
00:01:47]} a5 {[%clk 00:19:08]} {[%emt 00:01:42]} 19. Kf1 {[%clk 00:07:33]}
{[%emt 00:01:18]} a4 {[%clk 00:18:03]} {[%emt 00:01:18]} 20. Qc2 {[%clk
00:07:19]} {[%emt 00:00:19]} Ne7 {[%clk 00:17:09]} {[%emt 00:01:08]} 21. Rad1
{[%clk 00:06:16]} {[%emt 00:01:14]} Nd5 {[%clk 00:16:26]} {[%emt 00:00:53]} 22.
Rd3 {[%clk 00:05:43]} {[%emt 00:00:43]} Rab8 {[%clk 00:14:57]} {[%emt
00:01:40]} 23. Red1 {[%clk 00:04:22]} {[%emt 00:01:30]} Nxe3+ {[%clk 00:14:25]}
{[%emt 00:00:42]} 24. Rxe3 {[%clk 00:04:16]} {[%emt 00:00:17]} Rxe3 {[%clk
00:14:32]} {[%emt 00:00:02]} 25. fxe3 {[%clk 00:04:25]} Re8 {[%clk 00:14:25]}
{[%emt 00:00:16]} 26. Qf2 {[%clk 00:02:58]} {[%emt 00:01:37]} Qe6 {[%clk
00:13:51]} {[%emt 00:00:46]} 27. Re1 {[%clk 00:02:21]} {[%emt 00:00:41]} Qxa2
{[%clk 00:12:50]} {[%emt 00:01:17]} 28. e4 {[%clk 00:01:33]} {[%emt 00:00:58]}
Qc4+ {[%clk 00:12:39]} {[%emt 00:00:18]} 29. Kg1 {[%clk 00:01:31]} {[%emt
00:00:14]} b4 {[%clk 00:12:21]} {[%emt 00:00:28]} 30. cxb4 {[%clk 00:01:02]}
{[%emt 00:00:39]} Qxb4 {[%clk 00:12:19]} {[%emt 00:00:11]} 31. e5 {[%clk
00:00:47]} {[%emt 00:00:26]} fxe5 {[%clk 00:12:06]} {[%emt 00:00:22]} 32. Nxe5
{[%clk 00:00:44]} {[%emt 00:00:13]} Bxe5 {[%clk 00:11:55]} {[%emt 00:00:22]} 33.
Rxe5 {[%clk 00:00:46]} {[%emt 00:00:09]} Rxe5 {[%clk 00:11:59]} {[%emt
00:00:06]} 34. dxe5 {[%clk 00:00:54]} a3 {[%clk 00:11:35]} {[%emt 00:00:34]} 35.
bxa3 {[%clk 00:00:58]} {[%emt 00:00:07]} Qxa3 {[%clk 00:11:39]} {[%emt
00:00:06]} 36. Qf5 {[%clk 00:00:50]} {[%emt 00:00:18]} g6 {[%clk 00:11:10]}
{[%emt 00:00:37]} 37. Qc8+ {[%clk 00:00:29]} {[%emt 00:00:31]} Kg7 {[%clk
00:11:19]} {[%emt 00:00:02]} 38. Qxc6 {[%clk 00:00:35]} {[%emt 00:00:05]} Qa1+
{[%clk 00:11:26]} {[%emt 00:00:02]} 39. Kh2 {[%clk 00:00:42]} {[%emt 00:00:02]}
Qxe5+ {[%clk 00:11:34]} {[%emt 00:00:03]} 40. Kg1 {[%clk 00:00:50]} {[%emt
00:00:02]} Kh6 {[%clk 00:11:25]} {[%emt 00:00:15]} 41. Qc1+ {[%clk 00:00:48]}
{[%emt 00:00:17]} Qg5 {[%clk 00:11:30]} {[%emt 00:00:03]} 42. Qd1 {[%clk
00:00:46]} {[%emt 00:00:12]} f5 {[%clk 00:11:11]} {[%emt 00:00:30]} 43. Qd6
{[%clk 00:00:23]} {[%emt 00:00:32]} f4 {[%clk 00:10:46]} {[%emt 00:00:35]} 44.
Qf8+ {[%clk 00:00:17]} {[%emt 00:00:17]} Kh5 {[%clk 00:10:50]} {[%emt
00:00:05]} 45. Qa3 {[%clk 00:00:20]} {[%emt 00:00:07]} Qg3 {[%clk 00:10:29]}
{[%emt 00:00:31]} 46. Qa5+ {[%clk 00:00:13]} {[%emt 00:00:18]} g5 {[%clk
00:10:26]} {[%emt 00:00:13]} 47. Kh1 {[%clk 00:00:11]} {[%emt 00:00:13]} f3
{[%clk 00:10:23]} {[%emt 00:00:12]} 48. Qa2 {[%clk 00:00:15]} {[%emt 00:00:04]}
fxg2+ {[%clk 00:10:30]} {[%emt 00:00:05]} 49. Qxg2 {[%clk 00:00:24]} {[%emt
00:00:02]} Qxg2+ {[%clk 00:10:38]} {[%emt 00:00:02]} 50. Kxg2 {[%clk 00:00:33]}
Kg6 {[%clk 00:10:29]} {[%emt 00:00:19]} 51. Kf3 {[%clk 00:00:30]} {[%emt
00:00:13]} Kh5 {[%clk 00:09:53]} {[%emt 00:00:46]} 52. Kg2 {[%clk 00:00:20]}
{[%emt 00:00:20]} Kg6 {[%clk 00:09:54]} {[%emt 00:00:09]} 53. Kf3 {[%clk
00:00:27]} {[%emt 00:00:03]} Kf5 {[%clk 00:09:59]} {[%emt 00:00:04]} 54. Kg3
{[%clk 00:00:32]} {[%emt 00:00:06]} h5 {[%clk 00:10:02]} {[%emt 00:00:07]} 55.
Kf3 {[%clk 00:00:25]} {[%emt 00:00:17]} Ke5 {[%clk 00:10:05]} {[%emt 00:00:08]}
56. Kg3 {[%clk 00:00:25]} {[%emt 00:00:08]} Ke4 {[%clk 00:10:11]} {[%emt
00:00:05]} 57. Kg2 {[%clk 00:00:24]} {[%emt 00:00:11]} h4 {[%clk 00:10:04]}
{[%emt 00:00:17]} 58. Kf2 {[%clk 00:00:25]} {[%emt 00:00:09]} Kf4 {[%clk
00:10:11]} {[%emt 00:00:03]} 59. Kg2 {[%clk 00:00:32]} {[%emt 00:00:03]} Ke3
{[%clk 00:10:19]} {[%emt 00:00:02]} 60. Kg1 {[%clk 00:00:32]} {[%emt 00:00:10]}
Kf3 {[%clk 00:10:27]} {[%emt 00:00:03]} 61. Kh2 {[%clk 00:00:37]} {[%emt
00:00:04]} Kf2 {[%clk 00:10:36]} {[%emt 00:00:01]} 62. Kh1 {[%clk 00:00:42]}
{[%emt 00:00:06]} Kg3 {[%clk 00:10:43]} {[%emt 00:00:02]} 63. Kg1 {[%clk
00:00:50]} {[%emt 00:00:02]} Kxh3 {[%clk 00:10:51]} {[%emt 00:00:02]} 64. Kh1
{[%clk 00:00:58]} {[%emt 00:00:03]} Kg3 {[%clk 00:10:23]} {[%emt 00:00:37]} 65.
Kg1 {[%clk 00:01:04]} {[%emt 00:00:04]} g4 {[%clk 00:10:30]} {[%emt 00:00:04]}
66. Kh1 {[%clk 00:01:11]} {[%emt 00:00:02]} Kf2 {[%clk 00:10:38]} {[%emt
00:00:02]} 67. Kh2 {[%clk 00:00:53]} {[%emt 00:00:29]} g3 {[%clk 00:10:27]}
{[%emt 00:00:21]} 68. Kh3 {[%clk 00:00:44]} {[%emt 00:00:12]} g2 {[%clk
00:10:27]} {[%emt 00:00:15]} 69. Kxh4 {[%clk 00:00:53]} g1=R {[%clk 00:10:31]}
{[%emt 00:00:06]} 70. Kh3 {[%clk 00:00:45]} {[%emt 00:00:20]} Rg8 {[%clk
00:10:37]} {[%emt 00:00:04]} 71. Kh4 {[%clk 00:00:52]} {[%emt 00:00:03]} Kf3
{[%clk 00:10:45]} {[%emt 00:00:02]} 72. Kh5 {[%clk 00:01:01]} {[%emt 00:00:01]}
Kf4 73. Kh6 {[%emt 00:00:02]} Kf5 {[%clk 00:11:01]} {[%emt 00:00:02]} 74. Kh7
{[%clk 00:01:20]} Rg1 {[%clk 00:11:09]} {[%emt 00:00:03]} 75. Kh6 {[%clk
00:01:26]} {[%emt 00:00:04]} Rg2 {[%clk 00:11:18]} {[%emt 00:00:01]} 76. Kh7
{[%clk 00:01:35]} {[%emt 00:00:02]} Kf6 {[%clk 00:11:27]} {[%emt 00:00:01]} 77.
Kh8 {[%clk 00:01:43]} {[%emt 00:00:01]} Kf7 {[%clk 00:11:35]} {[%emt 00:00:02]}
78. Kh7 {[%clk 00:01:51]} Rh2 {[%clk 00:11:34]} 0-1



[ePGN "0.1;DGT LiveChess/2.2.6"]

[Event "MČR družstev mladších žáků 2024"]
[Site "Harrachov, Czech Republic"]
[Date "2024.06.16"]
[Round "8.25"]
[White "Padivy Jan"]
[Black "Honcharov Makar"]
[Result "0-1"]
[TimeControl "25+10"]
[WhiteFideId "23752904"]
[BlackFideId "23746203"]
[WhiteElo "1500"]
[BlackElo "1806"]

1. d4 {[%clk 00:25:18]} {[%emt 00:00:03]} Nf6 {[%clk 00:25:19]} 2. c4 {[%clk
00:25:26]} {[%emt 00:00:01]} g6 {[%clk 00:25:28]} {[%emt 00:00:01]} 3. Nc3
{[%clk 00:25:35]} {[%emt 00:00:02]} Bg7 {[%clk 00:25:37]} {[%emt 00:00:01]} 4.
Nf3 {[%clk 00:25:43]} {[%emt 00:00:02]} d6 {[%clk 00:25:46]} 5. Bg5 {[%clk
00:25:51]} {[%emt 00:00:02]} h6 {[%clk 00:25:54]} {[%emt 00:00:02]} 6. Bh4
{[%clk 00:25:58]} {[%emt 00:00:04]} g5 {[%clk 00:26:03]} {[%emt 00:00:01]} 7.
Bg3 {[%clk 00:26:06]} {[%emt 00:00:01]} Nh5 {[%clk 00:26:12]} 8. e3 {[%clk
00:24:31]} {[%emt 00:01:46]} c5 {[%clk 00:26:19]} {[%emt 00:00:03]} 9. Rc1
{[%clk 00:23:38]} {[%emt 00:01:02]} Nxg3 {[%clk 00:25:29]} {[%emt 00:01:01]} 10.
fxg3 {[%clk 00:23:15]} {[%emt 00:00:32]} g4 {[%clk 00:25:35]} {[%emt 00:00:06]}
11. Ng1 {[%clk 00:17:26]} {[%emt 00:05:45]} cxd4 {[%clk 00:25:25]} {[%emt
00:00:34]} 12. exd4 {[%clk 00:17:32]} {[%emt 00:00:03]} Nc6 {[%clk 00:25:23]}
{[%emt 00:00:13]} 13. Nge2 {[%clk 00:10:37]} {[%emt 00:07:04]} Bf5 {[%clk
00:23:55]} {[%emt 00:01:38]} 14. a3 {[%clk 00:08:54]} {[%emt 00:01:53]} e5
{[%clk 00:20:23]} {[%emt 00:03:41]} 15. dxe5 {[%clk 00:07:13]} {[%emt
00:01:52]} O-O {[%clk 00:17:48]} {[%emt 00:02:44]} 16. Nd4 {[%clk 00:06:31]}
{[%emt 00:00:51]} Nxd4 {[%clk 00:17:39]} {[%emt 00:00:21]} 17. Qxd4 {[%clk
00:06:36]} {[%emt 00:00:05]} Re8 {[%clk 00:17:37]} {[%emt 00:00:12]} 18. Be2
{[%clk 00:03:24]} {[%emt 00:03:21]} Rxe5 {[%clk 00:17:35]} {[%emt 00:00:12]} 19.
Qf2 {[%clk 00:02:00]} {[%emt 00:01:27]} Bf6 {[%clk 00:11:59]} {[%emt 00:05:55]}
20. O-O {[%clk 00:00:40]} {[%emt 00:01:30]} Bg5 {[%clk 00:12:08]} {[%emt
00:00:01]} 21. Kh1 {[%clk 00:00:12]} {[%emt 00:00:37]} Bxc1 {[%clk 00:12:10]}
{[%emt 00:00:08]} 22. Rxc1 {[%clk 00:00:22]} Qb6 {[%clk 00:11:45]} {[%emt
00:00:34]} 23. Qxb6 {[%clk 00:00:15]} {[%emt 00:00:18]} axb6 {[%clk 00:11:54]}
{[%emt 00:00:01]} 24. Rd1 {[%clk 00:00:14]} {[%emt 00:00:12]} Rae8 {[%clk
00:11:55]} {[%emt 00:00:09]} 25. Kg1 {[%clk 00:00:12]} {[%emt 00:00:12]} Rxe2
{[%clk 00:12:03]} {[%emt 00:00:02]} 26. Nxe2 {[%clk 00:00:21]} Rxe2 {[%clk
00:12:11]} {[%emt 00:00:01]} 27. Rxd6 {[%clk 00:00:23]} {[%emt 00:00:08]} Rxb2
{[%clk 00:11:55]} {[%emt 00:00:26]} 28. Rd5 {[%clk 00:00:15]} {[%emt 00:00:19]}
Be4 {[%clk 00:11:55]} {[%emt 00:00:10]} 29. Rd4 {[%clk 00:00:20]} {[%emt
00:00:05]} f5 {[%clk 00:11:46]} {[%emt 00:00:19]} 30. Rd8+ {[%clk 00:00:16]}
{[%emt 00:00:13]} Kf7 {[%clk 00:11:55]} {[%emt 00:00:01]} 31. Rd7+ {[%clk
00:00:14]} {[%emt 00:00:12]} Ke6 {[%clk 00:12:04]} {[%emt 00:00:01]} 32. Rh7
{[%clk 00:00:15]} {[%emt 00:00:09]} Rxg2+ {[%clk 00:12:11]} {[%emt 00:00:04]}
33. Kf1 {[%clk 00:00:23]} {[%emt 00:00:02]} Rxh2 {[%clk 00:12:19]} {[%emt
00:00:01]} 0-1



[ePGN "0.1;DGT LiveChess/2.2.6"]